fUSD/lending_fUSD_20240517
["ID","MTS","AMOUNT","RATE_DAILY","PERIOD"]
[327330399,1715988670007,-500.0,0.00012999,2]
[327330400,1715988670016,-4853.52,0.00012999,2]
[327330401,1715988670026,-500.0,0.00012999,2]
[327330402,1715988670036,-646.83738313,0.00012999,2]
[327330403,1715988670063,-4206.68261687,0.00012999,2]
[327330404,1715988670073,-4853.52,0.00012999,2]
[327330405,1715988670082,-4853.52,0.00012999,2]
[327330406,1715988670092,-3388.03533478,0.00012999,2]
[327330407,1715988670111,-435.67082283,0.00012999,2]
[327330408,1715988670169,-703.17710388,0.0001262,2]
[327330409,1715988670179,-1029.81384239,0.00012999,2]
[327330410,1715988670189,-245.91426719,0.00012999,2]
[327330411,1715988670228,-254.08573281,0.00012999,2]
[327330412,1715988670237,-4853.52,0.00012999,2]
[327330413,1715988670247,-500.0,0.00012999,2]
[327330414,1715988670257,-752.6021465,0.00012999,2]
[327330415,1715988670268,-678.5913163,0.00012999,2]
[327330416,1715988670280,-2488.9065938,0.00012999,2]
[327330417,1715988670430,-1466.35618,0.00012998,2]
[327330418,1715988670439,-933.4199434,0.00012999,2]
[327330419,1715988670449,-500.0,0.00012999,2]
[327330420,1715988670460,-1324.11169714,0.00012999,2]
[327330421,1715988670475,-3529.40830286,0.00012999,2]
[327330422,1715988670484,-500.0,0.00012999,2]
[327330423,1715988670493,-4853.52,0.00012999,2]
[327330424,1715988670502,-4853.52,0.00012999,2]
[327330425,1715988670512,-4853.52,0.00012999,2]
[327330426,1715988670521,-260.22,0.00012999,2]
[327330427,1715988670531,-4853.5969,0.00012999,2]
[327330428,1715988670540,-151.0,0.00012999,2]
[327330429,1715988670549,-151.0,0.00012999,2]
[327330430,1715988670559,-151.0,0.00012999,2]
[327330431,1715988670569,-151.0,0.00012999,2]
[327330432,1715988670579,-500.0,0.00012999,2]
[327330433,1715988670593,-151.0,0.00012999,2]
[327330434,1715988670603,-500.0,0.00012999,2]
[327330435,1715988670612,-500.0,0.00012999,2]
[327330436,1715988670622,-500.0,0.00012999,2]
[327330437,1715988670632,-500.0,0.00012999,2]
[327330438,1715988670641,-500.0,0.00012999,2]
[327330439,1715988670650,-500.0,0.00012999,2]
[327330440,1715988670659,-235.06,0.00012999,2]
[327330441,1715988670671,-500.0,0.00012999,2]
[327330442,1715988670681,-500.0,0.00012999,2]
[327330443,1715988670690,-500.0,0.00012999,2]
[327330444,1715988670701,-500.0,0.00012999,2]
[327330445,1715988670710,-500.0,0.00012999,2]
[327330446,1715988670720,-479.18,0.00012999,2]
[327330447,1715988670730,-500.0,0.00012999,2]
[327330448,1715988670739,-500.0,0.00012999,2]
[327330449,1715988670748,-500.0,0.00012999,2]
[327330450,1715988670758,-527.12,0.00012999,2]
[327330451,1715988670768,-320.0,0.00012999,2]
[327330452,1715988670894,-256.0,0.00012999,2]
[327330453,1715988670903,-500.0,0.00012999,2]
[327330454,1715988670914,-500.0,0.00012999,2]
[327330455,1715988670923,-500.0,0.00012999,2]
[327330456,1715988670932,-500.0,0.00012999,2]
[327330457,1715988670942,-394.52,0.00012999,2]
[327330458,1715988670951,-543.68,0.00012999,2]
[327330459,1715988670960,-642.16,0.00012999,2]
[327330460,1715988670970,-500.0,0.00012999,2]
[327330461,1715988670979,-642.16,0.00012999,2]
[327330462,1715988670988,-500.0,0.00012999,2]
[327330463,1715988670997,-642.16,0.00012999,2]
[327330464,1715988671007,-500.0,0.00012999,2]
[327330465,1715988671016,-500.0,0.00012999,2]
[327330466,1715988671025,-642.16,0.00012999,2]
[327330467,1715988671034,-500.0,0.00012999,2]
[327330468,1715988671043,-642.16,0.00012999,2]
[327330469,1715988671052,-500.0,0.00012999,2]
[327330470,1715988671061,-642.16,0.00012999,2]
[327330471,1715988671071,-500.0,0.00012999,2]
[327330472,1715988671080,-642.16,0.00012999,2]
[327330473,1715988671089,-500.0,0.00012999,2]
[327330474,1715988671098,-642.16,0.00012999,2]
[327330475,1715988671107,-310.72,0.00012999,2]
[327330476,1715988671116,-500.0,0.00012999,2]
[327330477,1715988671126,-642.16,0.00012999,2]
[327330478,1715988671135,-500.0,0.00012999,2]
[327330479,1715988671144,-500.0,0.00012999,2]
[327330480,1715988671152,-642.16,0.00012999,2]
[327330481,1715988671162,-545.23,0.00012999,2]
[327330482,1715988671170,-642.16,0.00012999,2]
[327330483,1715988671179,-642.16,0.00012999,2]
[327330484,1715988671189,-642.16,0.00012999,2]
[327330485,1715988671198,-642.16,0.00012999,2]
[327330486,1715988671209,-151.0,0.00012999,2]
[327330487,1715988671218,-500.0,0.00012999,2]
[327330488,1715988671227,-151.0,0.00012999,2]
[327330489,1715988671236,-500.0,0.00012999,2]
[327330490,1715988671246,-642.16,0.00012999,2]
[327330491,1715988671255,-151.0,0.00012999,2]
[327330492,1715988671264,-422.2546279,0.00012999,2]
[327330493,1715988671274,-642.25,0.00012999,2]
[327330494,1715988671283,-151.0,0.00012999,2]
[327330495,1715988671292,-222.94,0.00012999,2]
[327330496,1715988671302,-605.98,0.00012999,2]
[327330497,1715988671311,-605.98,0.00012999,2]
[327330498,1715988671321,-605.98,0.00012999,2]
[327330499,1715988671330,-605.98,0.00012999,2]
[327330500,1715988671339,-201.209665,0.00012999,2]
[327330501,1715988671348,-500.0,0.00012999,2]
[327330502,1715988671357,-605.98,0.00012999,2]
[327330503,1715988671366,-605.98,0.00012999,2]
[327330504,1715988671376,-500.0,0.00012999,2]
[327330505,1715988671385,-500.0,0.00012999,2]
[327330506,1715988671394,-605.98,0.00012999,2]
[327330507,1715988671403,-500.0,0.00012999,2]
[327330508,1715988671413,-605.98,0.00012999,2]
[327330509,1715988671422,-500.0,0.00012999,2]
[327330510,1715988671432,-605.98,0.00012999,2]
[327330511,1715988671441,-500.0,0.00012999,2]
[327330512,1715988671452,-605.98,0.00012999,2]
[327330513,1715988671461,-500.0,0.00012999,2]
[327330514,1715988671471,-605.98,0.00012999,2]
[327330515,1715988671480,-500.0,0.00012999,2]
[327330516,1715988671489,-605.98,0.00012999,2]
[327330517,1715988671498,-217.88,0.00012999,2]
[327330518,1715988671508,-421.83,0.00012999,2]
[327330519,1715988671517,-605.98,0.00012999,2]
[327330520,1715988671526,-605.98,0.00012999,2]
[327330521,1715988671535,-605.98,0.00012999,2]
[327330522,1715988671545,-605.98,0.00012999,2]
[327330523,1715988671554,-605.98,0.00012999,2]
[327330524,1715988671563,-605.98,0.00012999,2]
[327330525,1715988671573,-605.98,0.00012999,2]
[327330526,1715988671584,-605.98,0.00012999,2]
[327330527,1715988671595,-606.07,0.00012999,2]
[327330528,1715988671604,-641.34,0.00012999,2]
[327330529,1715988671615,-641.34,0.00012999,2]
[327330530,1715988671627,-641.34,0.00012999,2]
[327330531,1715988671637,-641.34,0.00012999,2]
[327330532,1715988671647,-641.34,0.00012999,2]
[327330533,1715988671658,-641.34,0.00012999,2]
[327330534,1715988671669,-500.0,0.00012999,2]
[327330535,1715988671679,-500.0,0.00012999,2]
[327330536,1715988671689,-641.34,0.00012999,2]
[327330537,1715988671698,-598.41,0.00012999,2]
[327330538,1715988671709,-500.0,0.00012999,2]
[327330539,1715988671719,-641.34,0.00012999,2]
[327330540,1715988671728,-641.34,0.00012999,2]
[327330541,1715988671737,-641.34,0.00012999,2]
[327330542,1715988671746,-641.34,0.00012999,2]
[327330543,1715988671757,-500.0,0.00012999,2]
[327330544,1715988671766,-500.0,0.00012999,2]
[327330545,1715988671775,-641.34,0.00012999,2]
[327330546,1715988671784,-500.0,0.00012999,2]
[327330547,1715988671793,-500.0,0.00012999,2]
[327330548,1715988671803,-641.34,0.00012999,2]
[327330549,1715988671812,-500.0,0.00012999,2]
[327330550,1715988671823,-500.0,0.00012999,2]
[327330551,1715988671833,-641.34,0.00012999,2]
[327330552,1715988671843,-500.0,0.00012999,2]
[327330553,1715988671854,-641.34,0.00012999,2]
[327330554,1715988671864,-591.91,0.00012999,2]
[327330555,1715988671873,-500.0,0.00012999,2]
[327330556,1715988671882,-641.34,0.00012999,2]
[327330557,1715988671891,-500.0,0.00012999,2]
[327330558,1715988671900,-641.34,0.00012999,2]
[327330559,1715988671910,-380.3,0.00012999,2]
[327330560,1715988671921,-500.0,0.00012999,2]
[327330561,1715988671933,-641.57,0.00012999,2]
[327330562,1715988671943,-500.0,0.00012999,2]
[327330563,1715988671954,-500.0,0.00012999,2]
[327330564,1715988671963,-500.0,0.00012999,2]
[327330565,1715988671973,-350.31,0.00012999,2]
[327330566,1715988671983,-340.5,0.00012999,2]
[327330567,1715988671991,-500.0,0.00012999,2]
[327330568,1715988672000,-500.0,0.00012999,2]
[327330569,1715988672010,-500.0,0.00012999,2]
[327330570,1715988672019,-500.0,0.00012999,2]
[327330571,1715988672029,-500.0,0.00012999,2]
[327330572,1715988672039,-264.66,0.00012999,2]
[327330573,1715988672049,-212.74,0.00012999,2]
[327330574,1715988672059,-500.0,0.00012999,2]
[327330575,1715988672069,-500.0,0.00012999,2]
[327330576,1715988672079,-500.0,0.00012999,2]
[327330577,1715988672089,-500.0,0.00012999,2]
[327330578,1715988672099,-500.0,0.00012999,2]
[327330579,1715988672109,-500.0,0.00012999,2]
[327330580,1715988672118,-500.0,0.00012999,2]
[327330581,1715988672128,-500.0,0.00012999,2]
[327330582,1715988672138,-500.0,0.00012999,2]
[327330583,1715988672148,-410.31,0.00012999,2]
[327330584,1715988672157,-500.0,0.00012999,2]
[327330585,1715988672166,-500.0,0.00012999,2]
[327330586,1715988672177,-500.0,0.00012999,2]
[327330587,1715988672187,-210.81,0.00012999,2]
[327330588,1715988672198,-264.23,0.00012999,2]
[327330589,1715988672209,-2876.57,0.00012999,2]
[327330590,1715988672218,-2876.57,0.00012999,2]
[327330591,1715988672227,-2876.57,0.00012999,2]
[327330592,1715988672237,-2876.57,0.00012999,2]
[327330593,1715988672247,-2876.57,0.00012999,2]
[327330594,1715988672257,-2876.57,0.00012999,2]
[327330595,1715988672267,-2876.57,0.00012999,2]
[327330596,1715988672277,-151.0,0.00012999,2]
[327330597,1715988672286,-2876.57,0.00012999,2]
[327330598,1715988672296,-151.0,0.00012999,2]
[327330599,1715988672307,-2876.57,0.00012999,2]
[327330600,1715988672318,-151.0,0.00012999,2]
[327330601,1715988672329,-2876.57,0.00012999,2]
[327330602,1715988672340,-2876.57,0.00012999,2]
[327330603,1715988672351,-2876.57,0.00012999,2]
[327330604,1715988672362,-2876.57,0.00012999,2]
[327330605,1715988672372,-2876.57,0.00012999,2]
[327330606,1715988672382,-2876.57,0.00012999,2]
[327330607,1715988672391,-1466.35618,0.00012999,2]
[327330608,1715988672401,-2876.63966694,0.00012999,2]
[327330609,1715988672411,-1466.35618,0.00012999,2]
[327330610,1715988672422,-1466.35618,0.00012999,2]
[327330611,1715988672432,-303704.03069164,0.00013,2]
[327330612,1715988672448,-270634.16445112,0.00013,2]
[327330613,1715988672460,-507404.36096001,0.00013,2]
[327330614,1715988672471,-629.23,0.00013,2]
[327330615,1715988672483,-398.83620363,0.00013,2]
[327330616,1715988672495,-1401.434011,0.00013,2]
[327330617,1715988672514,-1013.10052643,0.00013,2]
[327330618,1715988672525,-2068.35907027,0.00013,2]
[327330619,1715988672729,-393.85,0.00012676,2]
[327330620,1715988672741,-309.32710388,0.00012676,2]
[327330621,1715988672750,-161.78527506,0.00012995,2]
[327330622,1715988672759,-886.52628341,0.00012995,2]
[327330623,1715988672767,-232869.39630536,0.00013,2]
[327330624,1715988672789,-660.02,0.00013,2]
[327330625,1715988672800,-383.87296915,0.00013,2]
[327330626,1715988672811,-3635.66740546,0.00013,2]
[327330627,1715988672822,-617.96318409,0.00013,2]
[327330628,1715988672833,-677.99999947,0.00013,2]
[327330629,1715988672844,-5710.75474301,0.00013,2]
[327330630,1715988672856,-4788.38967729,0.00013,2]
[327330631,1715988672868,-789.16634203,0.00013,2]
[327330632,1715988672880,-1215.60604231,0.00013,2]
[327330633,1715988672892,-1594.95663513,0.00013,2]
[327330634,1715988672903,-57661.17912308,0.00013,2]
[327330635,1715988672915,-994.43474316,0.00013,2]
[327330636,1715988672933,-1458.83968283,0.00013,2]
[327330637,1715988672944,-358.2385076,0.00013,2]
[327330638,1715988672956,-295.25514135,0.00013,2]
[327330639,1715988672967,-1018.3,0.00013,2]
[327330640,1715988672978,-5237.00829475,0.00013,2]
[327330641,1715988672989,-489.02686996,0.00013,2]
[327330642,1715988673000,-3972.0,0.00013,2]
[327330643,1715988673012,-674.79429573,0.00013,2]
[327330644,1715988673024,-14582.43468,0.00013,2]
[327330645,1715988673035,-35885.226265,0.00013,2]
[327330646,1715988673046,-1227.69,0.00013,2]
[327330647,1715988673064,-206.9192363,0.00012995,2]
[327330648,1715988673073,-20356.08834112,0.00013,2]
[327330649,1715988673202,-387.53754655,0.00013,2]
[327330650,1715988673216,-794.89183922,0.00013,2]
[327330651,1715988673228,-8519.10173838,0.00013,2]
[327330652,1715988673240,-2524.23368152,0.00013,2]
[327330663,1715989441326,-158.87,9.91e-05,2]
[327330665,1715989514769,8040.3447,9.91e-05,2]
[327330704,1715989832345,-377.14468412,9.811e-05,2]
[327330705,1715989832358,-486.93,9.811e-05,2]
[327330706,1715989832403,-1653.54478479,9.811e-05,2]
[327330707,1715989832461,-1713.30000046,9.811e-05,2]
[327330708,1715989832583,-311.75053063,9.811e-05,2]
[327330709,1715989832594,-158.87,9.812e-05,2]
[327330710,1715989832605,-1404.48691673,9.91e-05,2]
[327330711,1715989832634,-281.63428196,9.91e-05,2]
[327330744,1715989838000,-1814.56851,9.91e-05,2]
[327330745,1715989838055,-400.0,9.91e-05,2]
[327330746,1715989838067,-313.27,9.91e-05,2]
[327330747,1715989838078,-7470.59444226,9.91e-05,2]
[327330748,1715989838088,-7516.64268761,9.91e-05,2]
[327330749,1715989838097,-289.1440258,9.91e-05,2]
[327330750,1715989838107,-803.4540425,0.00011,2]
[327330751,1715989838116,-250.0,0.00011702,2]
[327330752,1715989838126,-236.2,0.00011706,2]
[327330753,1715989838135,-1930.11,0.0001172,2]
[327330754,1715989838145,-800.0,0.00011723,2]
[327330755,1715989838154,-174.67,0.00011753,2]
[327330756,1715989838163,-250.0,0.00011753,2]
[327330757,1715989838174,-160.273447,0.00012226,2]
[327330758,1715989838184,-1105.326849,0.00012343,2]
[327330759,1715989838193,-187.055604,0.00012343,2]
[327330760,1715989838202,-192.049276,0.00012343,2]
[327330761,1715989838212,-187.055604,0.00012343,2]
[327330762,1715989838224,-192.049277,0.00012343,2]
[327330763,1715989838237,-1105.32685,0.00012343,2]
[327330764,1715989838246,-187.055605,0.00012343,2]
[327330765,1715989838255,-192.049276,0.00012343,2]
[327330766,1715989838266,-2210.6537,0.00012343,2]
[327330767,1715989838276,-224.466725,0.00012343,2]
[327330768,1715989838285,-384.098553,0.00012343,2]
[327330769,1715989838295,-189.756362,0.00012343,2]
[327330770,1715989838306,-683.01220765,0.00012343,2]
[327330771,1715989838318,-319.395,0.00012343,2]
[327330772,1715989838329,-102.91964235,0.00012343,2]
[327330773,1715989838338,-165.520287,0.00012343,2]
[327330774,1715989838347,-2795.79338143,0.000124,2]
[327330775,1715989838359,-429.17891897,0.000124,2]
[327330777,1715989838384,-262.65011809,0.000124,2]
[327330779,1715989838395,-1940.94509564,0.000124,2]
[327330781,1715989838406,-7969.17193469,0.000124,2]
[327330783,1715989838417,-3131.87472,0.000124,2]
[327330786,1715989838429,-63470.38583118,0.000124,2]
[327330788,1715989838438,-1105.326849,0.00012497,2]
[327330789,1715989838447,-192.049276,0.00012497,2]
[327330791,1715989838456,-192.049277,0.00012497,2]
[327330793,1715989838465,-1105.32685,0.00012497,2]
[327330795,1715989838474,-192.049276,0.00012497,2]
[327330797,1715989838483,-2210.6537,0.00012497,2]
[327330799,1715989838493,-224.466725,0.00012497,2]
[327330801,1715989838502,-384.098553,0.00012497,2]
[327330803,1715989838511,-1105.32685,0.00012497,2]
[327330805,1715989838520,-155.0,0.00012596,2]
[327330807,1715989838529,-151.71405486,0.00012597,2]
[327330809,1715989838539,-281.27084157,0.0001264,2]
[327330811,1715989838548,-1105.326849,0.00012651,2]
[327330813,1715989838557,-187.055604,0.00012651,2]
[327330815,1715989838566,-192.049276,0.00012651,2]
[327330817,1715989838575,-187.055604,0.00012651,2]
[327330819,1715989838584,-192.049277,0.00012651,2]
[327330821,1715989838594,-1045.28328263,0.00012651,2]
[327330823,1715989838605,-60.04356737,0.00012651,2]
[327330825,1715989838614,-187.055605,0.00012651,2]
[327330827,1715989838623,-192.049276,0.00012651,2]
[327330829,1715989838632,-2210.6537,0.00012651,2]
[327330831,1715989838641,-224.466725,0.00012651,2]
[327330833,1715989838650,-384.098553,0.00012651,2]
[327330835,1715989838659,-1105.32685,0.00012651,2]
[327330837,1715989838668,-281.27084155,0.00012669,2]
[327330839,1715989838677,-28305.39413971,0.0001268,2]
[327330841,1715989838686,-2500.0,0.00012697,2]
[327330843,1715989838695,-281.27084155,0.00012698,2]
[327330845,1715989838704,-336.8876014,0.00012698,2]
[327330847,1715989838716,-151.71405486,0.00012698,2]
[327330849,1715989838725,-5707.9215,0.00012698,2]
[327330851,1715989838735,-1000.0,0.000127,2]
[327330853,1715989838743,-1375.0,0.000127,2]
[327330855,1715989838752,-281.27084155,0.00012727,2]
[327330857,1715989838761,-2603.99957143,0.0001274,2]
[327330858,1715989838770,-2603.99957143,0.0001274,2]
[327330860,1715989838780,-281.27084155,0.00012756,2]
[327330862,1715989838789,-336.88760137,0.00012765,2]
[327330863,1715989838799,-281.27084155,0.00012784,2]
[327330864,1715989838808,-12651.55997179,0.00012795,2]
[327330865,1715989838817,-500.0,0.00012796,2]
[327330866,1715989838827,-500.0,0.00012796,2]
[327330867,1715989838836,-500.0,0.00012796,2]
[327330868,1715989838845,-500.0,0.00012796,2]
[327330869,1715989838855,-500.0,0.00012796,2]
[327330870,1715989838864,-500.0,0.00012796,2]
[327330871,1715989838873,-500.0,0.00012796,2]
[327330872,1715989838882,-500.0,0.00012796,2]
[327330873,1715989838891,-500.0,0.00012796,2]
[327330874,1715989838900,-500.0,0.00012796,2]
[327330875,1715989838909,-500.0,0.00012796,2]
[327330876,1715989838919,-500.0,0.00012796,2]
[327330877,1715989838928,-573.28,0.00012796,2]
[327330878,1715989838937,-500.0,0.00012796,2]
[327330879,1715989838947,-500.0,0.00012796,2]
[327330881,1715989838956,-500.0,0.00012796,2]
[327330882,1715989838966,-500.0,0.00012796,2]
[327330884,1715989838975,-500.0,0.00012796,2]
[327330886,1715989838984,-500.0,0.00012796,2]
[327330888,1715989838993,-500.0,0.00012796,2]
[327330890,1715989839003,-500.0,0.00012796,2]
[327330892,1715989839012,-500.0,0.00012796,2]
[327330894,1715989839021,-500.0,0.00012796,2]
[327330896,1715989839030,-500.0,0.00012796,2]
[327330898,1715989839040,-500.0,0.00012796,2]
[327330900,1715989839050,-500.0,0.00012796,2]
[327330901,1715989839059,-500.0,0.00012796,2]
[327330903,1715989839068,-500.0,0.00012796,2]
[327330905,1715989839078,-500.0,0.00012796,2]
[327330907,1715989839088,-1870.32,0.00012796,2]
[327330909,1715989839097,-526.33005659,0.00012796,2]
[327330911,1715989839107,-500.0,0.00012796,2]
[327330914,1715989839116,-500.0,0.00012796,2]
[327330916,1715989839126,-500.0,0.00012796,2]
[327330918,1715989839136,-500.0,0.00012796,2]
[327330920,1715989839146,-500.0,0.00012796,2]
[327330922,1715989839155,-500.0,0.00012796,2]
[327330924,1715989839165,-500.0,0.00012796,2]
[327330926,1715989839174,-500.0,0.00012796,2]
[327330928,1715989839183,-500.0,0.00012796,2]
[327330929,1715989839194,-500.0,0.00012796,2]
[327330932,1715989839204,-593.77126293,0.00012796,2]
[327330933,1715989839216,-858.01,0.00012796,2]
[327330935,1715989839230,-500.0,0.00012796,2]
[327330938,1715989839239,-500.0,0.00012796,2]
[327330940,1715989839249,-500.0,0.00012796,2]
[327330942,1715989839258,-500.0,0.00012796,2]
[327330944,1715989839267,-229.65403809,0.00012796,2]
[327330946,1715989839277,-2282.12257148,0.00012797,2]
[327330948,1715989839287,-500.0,0.00012797,2]
[327330950,1715989839298,-500.0,0.00012797,2]
[327330952,1715989839307,-500.0,0.00012797,2]
[327330954,1715989839316,-500.0,0.00012797,2]
[327330956,1715989839326,-500.0,0.00012797,2]
[327330958,1715989839335,-500.0,0.00012797,2]
[327330960,1715989839344,-500.0,0.00012797,2]
[327330962,1715989839354,-500.0,0.00012797,2]
[327330964,1715989839364,-500.0,0.00012797,2]
[327330966,1715989839373,-500.0,0.00012797,2]
[327330968,1715989839383,-500.0,0.00012797,2]
[327330970,1715989839393,-500.0,0.00012797,2]
[327330972,1715989839403,-500.0,0.00012797,2]
[327330974,1715989839412,-500.0,0.00012797,2]
[327330975,1715989839421,-500.0,0.00012797,2]
[327330977,1715989839430,-500.0,0.00012797,2]
[327330979,1715989839439,-500.0,0.00012797,2]
[327330982,1715989839449,-500.0,0.00012797,2]
[327330984,1715989839460,-500.0,0.00012797,2]
[327330986,1715989839470,-500.0,0.00012797,2]
[327330987,1715989839479,-500.0,0.00012797,2]
[327330989,1715989839489,-500.0,0.00012797,2]
[327330991,1715989839499,-519.12,0.00012797,2]
[327330993,1715989839509,-500.0,0.00012797,2]
[327330995,1715989839519,-500.0,0.00012797,2]
[327330997,1715989839528,-500.0,0.00012797,2]
[327330999,1715989839537,-500.0,0.00012797,2]
[327331001,1715989839547,-500.0,0.00012797,2]
[327331003,1715989839556,-500.0,0.00012797,2]
[327331005,1715989839566,-500.0,0.00012797,2]
[327331007,1715989839575,-500.0,0.00012797,2]
[327331009,1715989839585,-500.0,0.00012797,2]
[327331011,1715989839594,-538.21,0.00012797,2]
[327331013,1715989839603,-500.0,0.00012797,2]
[327331015,1715989839613,-500.0,0.00012797,2]
[327331017,1715989839622,-500.0,0.00012797,2]
[327331019,1715989839631,-150.0,0.00012797,2]
[327331022,1715989839641,-500.0,0.00012797,2]
[327331023,1715989839651,-500.0,0.00012797,2]
[327331026,1715989839661,-500.0,0.00012797,2]
[327331028,1715989839670,-467.71,0.00012797,2]
[327331030,1715989839680,-500.0,0.00012797,2]
[327331032,1715989839689,-500.0,0.00012797,2]
[327331034,1715989839699,-500.0,0.00012797,2]
[327331036,1715989839711,-500.0,0.00012797,2]
[327331038,1715989839720,-500.0,0.00012797,2]
[327331040,1715989839730,-504.02096241,0.00012797,2]
[327331041,1715989839738,-549.10311725,0.00012797,2]
[327331044,1715989839748,-500.0,0.00012797,2]
[327331045,1715989839757,-500.0,0.00012797,2]
[327331048,1715989839767,-500.0,0.00012797,2]
[327331050,1715989839776,-500.0,0.00012797,2]
[327331052,1715989839786,-605.79123153,0.00012797,2]
[327331054,1715989839795,-500.0,0.00012797,2]
[327331056,1715989839804,-500.0,0.00012797,2]
[327331059,1715989839815,-500.0,0.00012797,2]
[327331061,1715989839824,-500.0,0.00012797,2]
[327331065,1715989839834,-500.0,0.00012797,2]
[327331068,1715989839843,-500.0,0.00012797,2]
[327331071,1715989839852,-511.79027256,0.00012797,2]
[327331074,1715989839863,-500.0,0.00012797,2]
[327331077,1715989839872,-500.0,0.00012797,2]
[327331080,1715989839881,-500.0,0.00012797,2]
[327331083,1715989839890,-500.0,0.00012797,2]
[327331085,1715989839900,-502.31886938,0.00012797,2]
[327331088,1715989839910,-509.5217893,0.00012797,2]
[327331092,1715989839919,-500.0,0.00012797,2]
[327331095,1715989839929,-500.0,0.00012797,2]
[327331097,1715989839938,-500.0,0.00012797,2]
[327331100,1715989839948,-500.0,0.00012797,2]
[327331103,1715989839958,-500.0,0.00012797,2]
[327331107,1715989839968,-502.50379749,0.00012797,2]
[327331109,1715989839978,-538.51236108,0.00012797,2]
[327331113,1715989839988,-500.0,0.00012797,2]
[327331117,1715989839998,-500.0,0.00012797,2]
[327331120,1715989840008,-500.0,0.00012797,2]
[327331122,1715989840018,-502.14427196,0.00012797,2]
[327331125,1715989840027,-500.0,0.00012797,2]
[327331128,1715989840038,-500.0,0.00012797,2]
[327331132,1715989840049,-500.0,0.00012797,2]
[327331134,1715989840058,-500.0,0.00012797,2]
[327331137,1715989840067,-500.0,0.00012797,2]
[327331139,1715989840076,-500.0,0.00012797,2]
[327331142,1715989840085,-500.0,0.00012797,2]
[327331145,1715989840095,-500.0,0.00012797,2]
[327331148,1715989840104,-500.0,0.00012797,2]
[327331151,1715989840114,-587.98,0.00012797,2]
[327331154,1715989840123,-500.0,0.00012797,2]
[327331157,1715989840133,-500.0,0.00012797,2]
[327331160,1715989840143,-500.0,0.00012797,2]
[327331163,1715989840152,-502.9248386,0.00012797,2]
[327331166,1715989840161,-500.0,0.00012797,2]
[327331169,1715989840171,-500.0,0.00012797,2]
[327331170,1715989840180,-500.0,0.00012797,2]
[327331172,1715989840190,-500.0,0.00012797,2]
[327331174,1715989840199,-500.0,0.00012797,2]
[327331177,1715989840209,-500.0,0.00012797,2]
[327331179,1715989840219,-500.0,0.00012797,2]
[327331181,1715989840232,-500.0,0.00012797,2]
[327331183,1715989840242,-500.0,0.00012797,2]
[327331185,1715989840251,-501.94722179,0.00012797,2]
[327331187,1715989840262,-500.0,0.00012797,2]
[327331189,1715989840271,-500.0,0.00012797,2]
[327331191,1715989840280,-500.0,0.00012797,2]
[327331193,1715989840290,-500.0,0.00012797,2]
[327331195,1715989840299,-528.05332019,0.00012797,2]
[327331197,1715989840311,-500.0,0.00012797,2]
[327331199,1715989840321,-500.0,0.00012797,2]
[327331201,1715989840331,-500.0,0.00012797,2]